[Event "January 2 Early 2024"]
[Site "https://www.chess.com"]
[Date "2024.01.02"]
[Round "2"]
[White "Vakhlamov, Igor L."]
[Black "Sanchez Alvares, Kelvin Antonio"]
[Result "1-0"]
[Board "132"]
[TimeControl "180+1"]
[WhiteFideId "24126748"]
[BlackFideId "3906680"]
[WhiteElo "2802"]
[BlackElo "2465"]
[WhiteTeam "RUS"]
[BlackTeam "VEN"]
[WhiteClock "0:00:08"]
[BlackClock "0:00:11"]

1. e4 {[%clk 0:03:00]}  e5 {[%clk 0:02:59]} 2. Nf3 {[%clk 0:03:00]}  Nc6 {[%clk 0:02:59]} 3. Nc3 {[%clk 0:03:00]}  Bc5 {[%clk 0:02:58]} 4. Nxe5 {[%clk 0:02:59]}  Nxe5 {[%clk 0:02:59]} 5. d4 {[%clk 0:02:59]}  Bd6 {[%clk 0:03:00]} 6. dxe5 {[%clk 0:02:58]}  Bxe5 {[%clk 0:03:00]} 7. Qd3 {[%clk 0:02:58]}  d6 {[%clk 0:03:00]} 8. Bd2 {[%clk 0:02:59]}  Nf6 {[%clk 0:03:00]} 9. O-O-O {[%clk 0:02:56]}  O-O {[%clk 0:02:58]} 10. h3 {[%clk 0:02:57]}  Re8 {[%clk 0:02:57]} 11. Re1 {[%clk 0:02:44]}  Bd7 {[%clk 0:02:44]} 12. g4 {[%clk 0:02:39]}  Bc6 {[%clk 0:02:43]} 13. Bg2 {[%clk 0:02:39]}  Nd7 {[%clk 0:02:30]} 14. f4 {[%clk 0:02:34]}  Nc5 {[%clk 0:02:27]} 15. Qc4 {[%clk 0:02:33]}  b5 {[%clk 0:02:18]} 16. Nxb5 {[%clk 0:02:28]}  Bxb5 {[%clk 0:02:18]} 17. Qxb5 {[%clk 0:02:25]}  Rb8 {[%clk 0:02:18]} 18. Qc4 {[%clk 0:02:19]}  Bxb2+ {[%clk 0:02:17]} 19. Kd1 {[%clk 0:02:20]}  Ba3 {[%clk 0:02:07]} 20. Re3 {[%clk 0:02:09]}  d5 {[%clk 0:02:02]} 21. Qxd5 {[%clk 0:02:02]}  Qe7 {[%clk 0:01:45]} 22. Rxa3 {[%clk 0:01:31]}  Rbd8 {[%clk 0:01:38]} 23. Qc4 {[%clk 0:01:17]}  Nxe4 {[%clk 0:01:37]} 24. Bxe4 {[%clk 0:01:00]}  Qxa3 {[%clk 0:01:37]} 25. Bd3 {[%clk 0:00:58]}  Qb2 {[%clk 0:01:25]} 26. Bc1 {[%clk 0:00:47]}  Qb7 {[%clk 0:01:23]} 27. Rf1 {[%clk 0:00:43]}  Qg2 {[%clk 0:01:23]} 28. Bd2 {[%clk 0:00:38]}  Qxh3 {[%clk 0:01:17]} 29. g5 {[%clk 0:00:33]}  Rb8 {[%clk 0:01:13]} 30. Kc1 {[%clk 0:00:32]}  Qg2 {[%clk 0:01:03]} 31. f5 {[%clk 0:00:30]}  Qb7 {[%clk 0:01:01]} 32. Bc3 {[%clk 0:00:28]}  Qb1+ {[%clk 0:00:53]} 33. Kd2 {[%clk 0:00:28]}  Qb6 {[%clk 0:00:54]} 34. Qd4 {[%clk 0:00:25]}  Qxd4 {[%clk 0:00:51]} 35. Bxd4 {[%clk 0:00:26]}  Rbd8 {[%clk 0:00:50]} 36. Bxa7 {[%clk 0:00:24]}  Ra8 {[%clk 0:00:48]} 37. Bd4 {[%clk 0:00:23]}  Rxa2 {[%clk 0:00:48]} 38. Rb1 {[%clk 0:00:18]}  Ra4 {[%clk 0:00:46]} 39. Kc3 {[%clk 0:00:17]}  c5 {[%clk 0:00:45]} 40. Bf2 {[%clk 0:00:16]}  c4 {[%clk 0:00:40]} 41. Bxc4 {[%clk 0:00:13]}  Rc8 {[%clk 0:00:40]} 42. Rb4 {[%clk 0:00:14]}  Ra5 {[%clk 0:00:38]} 43. g6 {[%clk 0:00:13]}  Rxf5 {[%clk 0:00:34]} 44. gxf7+ {[%clk 0:00:13]}  Rxf7 {[%clk 0:00:34]} 45. Bd4 {[%clk 0:00:05]}  Kf8 {[%clk 0:00:30]} 46. Kb3 {[%clk 0:00:05]}  Rf3+ {[%clk 0:00:30]} 47. c3 {[%clk 0:00:05]}  h5 {[%clk 0:00:29]} 48. Rb5 {[%clk 0:00:06]}  g6 {[%clk 0:00:27]} 49. Be6 {[%clk 0:00:06]}  Rc6 {[%clk 0:00:26]} 50. Bd5 {[%clk 0:00:06]}  Rff6 {[%clk 0:00:24]} 51. Bxc6 {[%clk 0:00:06]}  Rd6 {[%clk 0:00:23]} 52. c4 {[%clk 0:00:07]}  Rxc6 {[%clk 0:00:22]} 53. c5 {[%clk 0:00:07]}  h4 {[%clk 0:00:11]} 54. Rb6 {[%clk 0:00:08]} 1-0

[Event "January 2 Early 2024"]
[Site "https://www.chess.com"]
[Date "2024.01.02"]
[Round "2"]
[White "Korol, Dimitry"]
[Black "Skliarov, Viktor"]
[Result "0-1"]
[Board "133"]
[TimeControl "180+1"]
[WhiteFideId "14108003"]
[BlackFideId "14106736"]
[WhiteElo "2328"]
[BlackElo "2661"]
[WhiteTeam "UKR"]
[BlackTeam "UKR"]
[WhiteClock "0:00:00"]
[BlackClock "0:00:20"]

1. d4 {[%clk 0:03:00]}  Nf6 {[%clk 0:02:59]} 2. c4 {[%clk 0:03:01]}  e5 {[%clk 0:02:58]} 3. dxe5 {[%clk 0:03:00]}  Ng4 {[%clk 0:02:58]} 4. Bf4 {[%clk 0:03:00]}  Nc6 {[%clk 0:02:56]} 5. Nf3 {[%clk 0:03:01]}  Bb4+ {[%clk 0:02:56]} 6. Nbd2 {[%clk 0:03:01]}  Qe7 {[%clk 0:02:56]} 7. e3 {[%clk 0:03:01]}  Ngxe5 {[%clk 0:02:55]} 8. Nxe5 {[%clk 0:03:02]}  Nxe5 {[%clk 0:02:55]} 9. Be2 {[%clk 0:03:02]}  O-O {[%clk 0:02:53]} 10. O-O {[%clk 0:03:02]}  Bxd2 {[%clk 0:02:51]} 11. Qxd2 {[%clk 0:03:02]}  a5 {[%clk 0:02:51]} 12. c5 {[%clk 0:02:37]}  Qxc5 {[%clk 0:02:08]} 13. Rac1 {[%clk 0:02:28]}  Qd6 {[%clk 0:02:03]} 14. Qxd6 {[%clk 0:02:13]}  cxd6 {[%clk 0:02:02]} 15. Rfd1 {[%clk 0:02:13]}  Nc6 {[%clk 0:01:47]} 16. Bxd6 {[%clk 0:02:04]}  Re8 {[%clk 0:01:46]} 17. h3 {[%clk 0:01:27]}  h6 {[%clk 0:01:24]} 18. g4 {[%clk 0:01:26]}  a4 {[%clk 0:01:21]} 19. a3 {[%clk 0:01:17]}  Ra5 {[%clk 0:01:11]} 20. Rd4 {[%clk 0:01:08]}  Nxd4 {[%clk 0:01:10]} 21. exd4 {[%clk 0:00:36]}  Rxe2 {[%clk 0:01:06]} 22. Rxc8+ {[%clk 0:00:35]}  Kh7 {[%clk 0:01:06]} 23. Rc7 {[%clk 0:00:34]}  Rxb2 {[%clk 0:01:01]} 24. Bb4 {[%clk 0:00:26]}  Rd5 {[%clk 0:01:00]} 25. Rxb7 {[%clk 0:00:24]}  Rxd4 {[%clk 0:00:58]} 26. Ra7 {[%clk 0:00:24]}  Rd3 {[%clk 0:00:52]} 27. Kg2 {[%clk 0:00:24]}  Rbb3 {[%clk 0:00:50]} 28. h4 {[%clk 0:00:23]}  h5 {[%clk 0:00:48]} 29. g5 {[%clk 0:00:22]}  Rd4 {[%clk 0:00:45]} 30. Rc7 {[%clk 0:00:17]}  Rg4+ {[%clk 0:00:44]} 31. Kf1 {[%clk 0:00:15]}  Rxh4 {[%clk 0:00:43]} 32. Rxd7 {[%clk 0:00:15]}  Kg6 {[%clk 0:00:43]} 33. Bd2 {[%clk 0:00:12]}  Rxa3 {[%clk 0:00:40]} 34. Rd6+ {[%clk 0:00:13]}  f6 {[%clk 0:00:39]} 35. gxf6 {[%clk 0:00:12]}  gxf6 {[%clk 0:00:40]} 36. Be3 {[%clk 0:00:12]}  Re4 {[%clk 0:00:35]} 37. Kg2 {[%clk 0:00:11]}  Ra2 {[%clk 0:00:31]} 38. Kf3 {[%clk 0:00:11]}  Re5 {[%clk 0:00:30]} 39. Bd4 {[%clk 0:00:11]}  Rf5+ {[%clk 0:00:31]} 40. Ke4 {[%clk 0:00:11]}  a3 {[%clk 0:00:30]} 41. Ra6 {[%clk 0:00:11]}  h4 {[%clk 0:00:26]} 42. Ra8 {[%clk 0:00:09]}  h3 {[%clk 0:00:25]} 43. Rh8 {[%clk 0:00:09]}  Re2+ {[%clk 0:00:24]} 44. Kd3 {[%clk 0:00:08]}  Rexf2 {[%clk 0:00:24]} 45. Bxf2 {[%clk 0:00:08]}  Rxf2 {[%clk 0:00:24]} 46. Rxh3 {[%clk 0:00:07]}  a2 {[%clk 0:00:23]} 47. Rh1 {[%clk 0:00:08]}  Kf5 {[%clk 0:00:23]} 48. Ke3 {[%clk 0:00:07]}  Rb2 {[%clk 0:00:22]} 49. Ra1 {[%clk 0:00:07]}  Ke5 {[%clk 0:00:22]} 50. Kd3 {[%clk 0:00:07]}  f5 {[%clk 0:00:22]} 51. Ke3 {[%clk 0:00:07]}  Rb3+ {[%clk 0:00:20]} 52. Kf2 {[%clk 0:00:07]}  Ra3 {[%clk 0:00:20]} 53. Ke2 {[%clk 0:00:07]}  Ke4 {[%clk 0:00:20]} 54. Kd2 {[%clk 0:00:07]}  f4 {[%clk 0:00:20]} 55. Ke2 {[%clk 0:00:07]}  f3+ {[%clk 0:00:20]} 56. Kf2 {[%clk 0:00:07]}  Kf4 {[%clk 0:00:20]} 57. Kf1 {[%clk 0:00:07]}  Kg3 {[%clk 0:00:20]} 58. Kg1 {[%clk 0:00:07]}  Rb3 {[%clk 0:00:20]} 59. Rf1 {[%clk 0:00:00]}  Rb1 {[%clk 0:00:20]} 0-1

[Event "January 2 Early 2024"]
[Site "https://www.chess.com"]
[Date "2024.01.02"]
[Round "2"]
[White "Mikhalsky, Vladimir"]
[Black "Ashraf, Artin"]
[Result "1-0"]
[Board "140"]
[TimeControl "180+1"]
[WhiteFideId "14144352"]
[BlackFideId "22514805"]
[WhiteElo "2391"]
[BlackElo "2928"]
[WhiteTeam "UKR"]
[BlackTeam "IRI"]
[WhiteClock "0:00:09"]
[BlackClock "0:00:05"]

1. c4 {[%clk 0:02:51]}  e5 {[%clk 0:02:59]} 2. Nc3 {[%clk 0:02:48]}  d6 {[%clk 0:02:58]} 3. g3 {[%clk 0:02:48]}  g6 {[%clk 0:02:55]} 4. Bg2 {[%clk 0:02:46]}  Bg7 {[%clk 0:02:56]} 5. e3 {[%clk 0:02:46]}  Nc6 {[%clk 0:02:52]} 6. Nge2 {[%clk 0:02:44]}  h5 {[%clk 0:02:51]} 7. h3 {[%clk 0:02:42]}  Be6 {[%clk 0:02:49]} 8. Nd5 {[%clk 0:02:40]}  Qd7 {[%clk 0:02:47]} 9. d4 {[%clk 0:02:33]}  Nh6 {[%clk 0:02:47]} 10. b3 {[%clk 0:02:24]}  Nf5 {[%clk 0:02:42]} 11. Bb2 {[%clk 0:02:16]}  O-O {[%clk 0:02:40]} 12. Qd2 {[%clk 0:01:52]}  Rab8 {[%clk 0:02:38]} 13. O-O-O {[%clk 0:01:49]}  b5 {[%clk 0:02:36]} 14. cxb5 {[%clk 0:01:46]}  Rxb5 {[%clk 0:02:35]} 15. Ndc3 {[%clk 0:01:46]}  Nb4 {[%clk 0:02:19]} 16. d5 {[%clk 0:01:34]}  Nd4 {[%clk 0:01:58]} 17. exd4 {[%clk 0:01:29]}  Bf5 {[%clk 0:01:58]} 18. g4 {[%clk 0:01:19]}  hxg4 {[%clk 0:01:51]} 19. hxg4 {[%clk 0:01:19]}  Bxg4 {[%clk 0:01:52]} 20. Nxb5 {[%clk 0:01:04]}  Qxb5 {[%clk 0:01:49]} 21. Nc3 {[%clk 0:01:02]}  Nxa2+ {[%clk 0:01:41]} 22. Nxa2 {[%clk 0:00:57]}  Qxb3 {[%clk 0:01:41]} 23. Kb1 {[%clk 0:00:51]}  exd4 {[%clk 0:01:38]} 24. Ka1 {[%clk 0:00:48]}  Qa4 {[%clk 0:01:31]} 25. Bxd4 {[%clk 0:00:44]}  Bxd1 {[%clk 0:00:55]} 26. Bxg7 {[%clk 0:00:37]}  Kxg7 {[%clk 0:00:55]} 27. Rxd1 {[%clk 0:00:23]}  f6 {[%clk 0:00:51]} 28. Rh1 {[%clk 0:00:22]}  Kg8 {[%clk 0:00:43]} 29. Bf1 {[%clk 0:00:20]}  Rb8 {[%clk 0:00:39]} 30. Bd3 {[%clk 0:00:19]}  Qd4+ {[%clk 0:00:38]} 31. Qc3 {[%clk 0:00:17]}  Qxf2 {[%clk 0:00:38]} 32. Bxg6 {[%clk 0:00:14]}  Qg2 {[%clk 0:00:36]} 33. Re1 {[%clk 0:00:13]}  Qxg6 {[%clk 0:00:35]} 34. Qxc7 {[%clk 0:00:13]}  Re8 {[%clk 0:00:25]} 35. Rxe8+ {[%clk 0:00:13]}  Qxe8 {[%clk 0:00:25]} 36. Qxd6 {[%clk 0:00:13]}  Qe1+ {[%clk 0:00:26]} 37. Kb2 {[%clk 0:00:14]}  Qe2+ {[%clk 0:00:26]} 38. Kb3 {[%clk 0:00:14]}  Qb5+ {[%clk 0:00:25]} 39. Nb4 {[%clk 0:00:13]}  a5 {[%clk 0:00:24]} 40. Qd8+ {[%clk 0:00:12]}  Kf7 {[%clk 0:00:23]} 41. Qc7+ {[%clk 0:00:10]}  Ke8 {[%clk 0:00:19]} 42. Qc6+ {[%clk 0:00:09]}  Qxc6 {[%clk 0:00:19]} 43. Nxc6 {[%clk 0:00:09]}  f5 {[%clk 0:00:19]} 44. Nxa5 {[%clk 0:00:08]}  f4 {[%clk 0:00:19]} 45. Kc3 {[%clk 0:00:09]}  Kd7 {[%clk 0:00:18]} 46. Nc4 {[%clk 0:00:08]}  f3 {[%clk 0:00:18]} 47. Kd3 {[%clk 0:00:08]}  f2 {[%clk 0:00:05]} 48. Ke2 {[%clk 0:00:09]} 1-0

[Event "January 2 Early 2024"]
[Site "https://www.chess.com"]
[Date "2024.01.02"]
[Round "2"]
[White "Bordi, Kevin"]
[Black "Mohammed, Zozek Salah Mohammed"]
[Result "1-0"]
[Board "142"]
[TimeControl "180+1"]
[WhiteFideId "621862"]
[BlackFideId "4803361"]
[WhiteElo "2807"]
[BlackElo "2388"]
[WhiteTeam "MNC"]
[BlackTeam "IRQ"]
[WhiteClock "0:00:55"]
[BlackClock "0:01:58"]

1. d4 {[%clk 0:03:00]}  d5 {[%clk 0:02:52]} 2. Bf4 {[%clk 0:03:00]}  Nf6 {[%clk 0:02:51]} 3. e3 {[%clk 0:02:58]}  c5 {[%clk 0:02:51]} 4. c3 {[%clk 0:02:58]}  Nc6 {[%clk 0:02:52]} 5. Nd2 {[%clk 0:02:59]}  e6 {[%clk 0:02:52]} 6. Ngf3 {[%clk 0:02:59]}  Bd6 {[%clk 0:02:53]} 7. Ne5 {[%clk 0:03:00]}  O-O {[%clk 0:02:51]} 8. Bd3 {[%clk 0:02:59]}  a6 {[%clk 0:02:49]} 9. Qf3 {[%clk 0:02:59]}  c4 {[%clk 0:02:46]} 10. Bc2 {[%clk 0:02:59]}  Qe7 {[%clk 0:02:44]} 11. Qh3 {[%clk 0:02:59]}  g6 {[%clk 0:02:43]} 12. Ndf3 {[%clk 0:02:54]}  Ne4 {[%clk 0:02:36]} 13. Bxe4 {[%clk 0:02:46]}  dxe4 {[%clk 0:02:37]} 14. Ng5 {[%clk 0:02:45]}  h5 {[%clk 0:02:30]} 15. Nxe4 {[%clk 0:02:39]}  Bxe5 {[%clk 0:02:25]} 16. dxe5 {[%clk 0:02:38]}  b5 {[%clk 0:02:17]} 17. Nf6+ {[%clk 0:02:22]}  Kg7 {[%clk 0:02:15]} 18. g4 {[%clk 0:02:16]}  Qc5 {[%clk 0:02:10]} 19. Qg3 {[%clk 0:01:03]}  hxg4 {[%clk 0:02:05]} 20. O-O-O {[%clk 0:00:59]}  b4 {[%clk 0:01:59]} 21. Bh6+ {[%clk 0:00:55]}  Kxh6 {[%clk 0:01:57]} 22. Qh4+ {[%clk 0:00:55]}  Kg7 {[%clk 0:01:58]} 23. Qh7# {[%clk 0:00:55]} 1-0

[Event "January 2 Early 2024"]
[Site "https://www.chess.com"]
[Date "2024.01.02"]
[Round "2"]
[White "Hoffmann, Asa"]
[Black "Korchmar, Vasiliy"]
[Result "0-1"]
[Board "146"]
[TimeControl "180+1"]
[WhiteFideId "2001470"]
[BlackFideId "24131750"]
[WhiteElo "2381"]
[BlackElo "2769"]
[WhiteTeam "USA"]
[BlackTeam "RUS"]
[WhiteClock "0:01:56"]
[BlackClock "0:02:15"]

1. d4 {[%clk 0:02:58]}  Nf6 {[%clk 0:02:59]} 2. Bg5 {[%clk 0:02:57]}  d5 {[%clk 0:02:58]} 3. Nd2 {[%clk 0:02:57]}  c5 {[%clk 0:02:57]} 4. c3 {[%clk 0:02:56]}  Nc6 {[%clk 0:02:57]} 5. e3 {[%clk 0:02:56]}  Qb6 {[%clk 0:02:53]} 6. b3 {[%clk 0:02:49]}  Bf5 {[%clk 0:02:52]} 7. f4 {[%clk 0:02:48]}  e6 {[%clk 0:02:50]} 8. Ngf3 {[%clk 0:02:48]}  cxd4 {[%clk 0:02:49]} 9. Nxd4 {[%clk 0:02:41]}  Nxd4 {[%clk 0:02:44]} 10. exd4 {[%clk 0:02:41]}  Ba3 {[%clk 0:02:44]} 11. Qf3 {[%clk 0:02:26]}  Bb2 {[%clk 0:02:38]} 12. Rd1 {[%clk 0:02:25]}  Bg4 {[%clk 0:02:38]} 13. Qg3 {[%clk 0:02:18]}  Bxd1 {[%clk 0:02:38]} 14. Bxf6 {[%clk 0:02:18]}  gxf6 {[%clk 0:02:36]} 15. Kxd1 {[%clk 0:02:17]}  Qa5 {[%clk 0:02:31]} 16. Bd3 {[%clk 0:02:10]}  Bxc3 {[%clk 0:02:26]} 17. Qg7 {[%clk 0:02:07]}  Ke7 {[%clk 0:02:25]} 18. Nf3 {[%clk 0:01:56]}  Rhg8 {[%clk 0:02:15]} 0-1

[Event "January 2 Early 2024"]
[Site "https://www.chess.com"]
[Date "2024.01.02"]
[Round "2"]
[White "Novak, Ratko"]
[Black "Matinian, Nikita"]
[Result "0-1"]
[Board "148"]
[TimeControl "180+1"]
[WhiteFideId "14511827"]
[BlackFideId "24129100"]
[WhiteElo "2379"]
[BlackElo "2740"]
[WhiteTeam "CRO"]
[BlackTeam "FID"]
[WhiteClock "0:00:00"]
[BlackClock "0:00:07"]

1. d4 {[%clk 0:03:00]}  Nf6 {[%clk 0:02:59]} 2. c4 {[%clk 0:03:00]}  g6 {[%clk 0:03:00]} 3. Nc3 {[%clk 0:02:59]}  Bg7 {[%clk 0:03:00]} 4. e4 {[%clk 0:02:59]}  d6 {[%clk 0:03:00]} 5. f3 {[%clk 0:02:52]}  O-O {[%clk 0:02:58]} 6. Be3 {[%clk 0:02:52]}  c5 {[%clk 0:02:57]} 7. dxc5 {[%clk 0:02:52]}  dxc5 {[%clk 0:02:57]} 8. Qxd8 {[%clk 0:02:53]}  Rxd8 {[%clk 0:02:57]} 9. Bxc5 {[%clk 0:02:54]}  Nc6 {[%clk 0:02:54]} 10. Nd5 {[%clk 0:02:54]}  Nd7 {[%clk 0:02:28]} 11. Nxe7+ {[%clk 0:02:52]}  Nxe7 {[%clk 0:02:28]} 12. Bxe7 {[%clk 0:02:52]}  Re8 {[%clk 0:02:25]} 13. Ba3 {[%clk 0:02:44]}  Ne5 {[%clk 0:02:24]} 14. O-O-O {[%clk 0:02:43]}  Be6 {[%clk 0:02:24]} 15. b3 {[%clk 0:02:42]}  a5 {[%clk 0:02:09]} 16. Bb2 {[%clk 0:02:32]}  a4 {[%clk 0:02:08]} 17. h3 {[%clk 0:02:23]}  axb3 {[%clk 0:02:06]} 18. axb3 {[%clk 0:02:23]}  Ra2 {[%clk 0:02:04]} 19. Ne2 {[%clk 0:02:11]}  Rxb2 {[%clk 0:01:01]} 20. Kxb2 {[%clk 0:02:08]}  Nxc4+ {[%clk 0:01:02]} 21. Kb1 {[%clk 0:02:00]}  Na3+ {[%clk 0:00:59]} 22. Ka2 {[%clk 0:01:51]}  Ra8 {[%clk 0:00:49]} 23. Rd8+ {[%clk 0:01:47]}  Rxd8 {[%clk 0:00:49]} 24. Kxa3 {[%clk 0:01:48]}  Rd1 {[%clk 0:00:46]} 25. Ng3 {[%clk 0:01:41]}  Bf8+ {[%clk 0:00:32]} 26. Kb2 {[%clk 0:01:40]}  Bd6 {[%clk 0:00:26]} 27. Bc4 {[%clk 0:01:39]}  Rd2+ {[%clk 0:00:25]} 28. Kc3 {[%clk 0:01:33]}  Rxg2 {[%clk 0:00:23]} 29. Bxe6 {[%clk 0:01:26]}  Rxg3 {[%clk 0:00:23]} 30. Bd5 {[%clk 0:01:26]}  Rxf3+ {[%clk 0:00:23]} 31. Kc4 {[%clk 0:01:27]}  b6 {[%clk 0:00:19]} 32. h4 {[%clk 0:01:26]}  h5 {[%clk 0:00:17]} 33. Kb5 {[%clk 0:01:25]}  Bc5 {[%clk 0:00:15]} 34. Kc6 {[%clk 0:01:24]}  Kg7 {[%clk 0:00:15]} 35. Kb5 {[%clk 0:01:24]}  Rf4 {[%clk 0:00:15]} 36. b4 {[%clk 0:01:24]}  Bf2 {[%clk 0:00:15]} 37. Kc6 {[%clk 0:01:23]}  Kf6 {[%clk 0:00:14]} 38. Kd6 {[%clk 0:01:22]}  Rxh4 {[%clk 0:00:11]} 39. e5+ {[%clk 0:01:15]}  Kg7 {[%clk 0:00:10]} 40. Rc1 {[%clk 0:01:08]}  Rxb4 {[%clk 0:00:04]} 41. Rc7 {[%clk 0:01:07]}  Bc5+ {[%clk 0:00:04]} 42. Kc6 {[%clk 0:01:07]}  Rf4 {[%clk 0:00:04]} 43. e6 {[%clk 0:01:07]}  Rf6 {[%clk 0:00:04]} 44. Kb5 {[%clk 0:01:05]}  h4 {[%clk 0:00:04]} 45. exf7 {[%clk 0:01:05]}  h3 {[%clk 0:00:04]} 46. Rc8 {[%clk 0:01:01]}  Bf8 {[%clk 0:00:04]} 47. Rc3 {[%clk 0:01:01]}  h2 {[%clk 0:00:04]} 48. Rh3 {[%clk 0:01:01]}  Rf2 {[%clk 0:00:04]} 49. Kxb6 {[%clk 0:01:00]}  g5 {[%clk 0:00:04]} 50. Be6 {[%clk 0:00:59]}  Kf6 {[%clk 0:00:04]} 51. Bd5 {[%clk 0:00:45]}  g4 {[%clk 0:00:04]} 52. Rh8 {[%clk 0:00:45]}  Ke7 {[%clk 0:00:04]} 53. Rg8 {[%clk 0:00:39]}  Rb2+ {[%clk 0:00:04]} 54. Kc5 {[%clk 0:00:36]}  Rc2+ {[%clk 0:00:04]} 55. Kb5 {[%clk 0:00:36]}  Rd2 {[%clk 0:00:04]} 56. Be4 {[%clk 0:00:32]}  Rd4 {[%clk 0:00:03]} 57. Bc6 {[%clk 0:00:32]}  Kxf7 {[%clk 0:00:02]} 58. Rh8 {[%clk 0:00:28]}  Rd2 {[%clk 0:00:02]} 59. Kc4 {[%clk 0:00:27]}  g3 {[%clk 0:00:01]} 60. Kc3 {[%clk 0:00:23]}  Rf2 {[%clk 0:00:01]} 61. Bd5+ {[%clk 0:00:18]}  Kg7 {[%clk 0:00:01]} 62. Rg8+ {[%clk 0:00:16]}  Kh7 {[%clk 0:00:01]} 63. Rxg3 {[%clk 0:00:17]}  Bg7+ {[%clk 0:00:01]} 64. Kc4 {[%clk 0:00:17]}  Rf1 {[%clk 0:00:02]} 65. Rh3+ {[%clk 0:00:17]}  Kg6 {[%clk 0:00:02]} 66. Rxh2 {[%clk 0:00:17]}  Be5 {[%clk 0:00:02]} 67. Rg2+ {[%clk 0:00:16]}  Kf6 {[%clk 0:00:03]} 68. Re2 {[%clk 0:00:16]}  Rf4+ {[%clk 0:00:03]} 69. Be4 {[%clk 0:00:16]}  Rg4 {[%clk 0:00:03]} 70. Kd5 {[%clk 0:00:16]}  Bf4 {[%clk 0:00:04]} 71. Ra2 {[%clk 0:00:15]}  Rg3 {[%clk 0:00:04]} 72. Ra6+ {[%clk 0:00:15]}  Kg5 {[%clk 0:00:04]} 73. Ra8 {[%clk 0:00:15]}  Re3 {[%clk 0:00:04]} 74. Rg8+ {[%clk 0:00:14]}  Kh4 {[%clk 0:00:04]} 75. Rf8 {[%clk 0:00:13]}  Kg3 {[%clk 0:00:04]} 76. Rg8+ {[%clk 0:00:13]}  Kf2 {[%clk 0:00:04]} 77. Rg6 {[%clk 0:00:13]}  Re1 {[%clk 0:00:04]} 78. Rf6 {[%clk 0:00:13]}  Ke3 {[%clk 0:00:04]} 79. Rf7 {[%clk 0:00:14]}  Rd1+ {[%clk 0:00:05]} 80. Ke6 {[%clk 0:00:13]}  Kxe4 {[%clk 0:00:05]} 81. Ra7 {[%clk 0:00:13]}  Be3 {[%clk 0:00:05]} 82. Ra4+ {[%clk 0:00:13]}  Bd4 {[%clk 0:00:05]} 83. Rb4 {[%clk 0:00:12]}  Rh1 {[%clk 0:00:06]} 84. Kf7 {[%clk 0:00:10]}  Rh6 {[%clk 0:00:06]} 85. Ra4 {[%clk 0:00:10]}  Kd5 {[%clk 0:00:06]} 86. Ra2 {[%clk 0:00:08]}  Be5 {[%clk 0:00:06]} 87. Ra5+ {[%clk 0:00:07]}  Ke4 {[%clk 0:00:06]} 88. Ra2 {[%clk 0:00:07]}  Kf5 {[%clk 0:00:06]} 89. Rf2+ {[%clk 0:00:07]}  Bf4 {[%clk 0:00:07]} 90. Kg7 {[%clk 0:00:07]}  Rb6 {[%clk 0:00:07]} 91. Rd2 {[%clk 0:00:05]}  Rb7+ {[%clk 0:00:07]} 92. Kf8 {[%clk 0:00:00]}  Bxd2 {[%clk 0:00:07]} 0-1

[Event "January 2 Early 2024"]
[Site "https://www.chess.com"]
[Date "2024.01.02"]
[Round "2"]
[White "Zou, Chen"]
[Black "Kekic, Armin"]
[Result "1-0"]
[Board "149"]
[TimeControl "180+1"]
[WhiteFideId "8610959"]
[BlackFideId "14401274"]
[WhiteElo "2732"]
[BlackElo "2376"]
[WhiteTeam "CHN"]
[BlackTeam "BIH"]
[WhiteClock "0:01:10"]
[BlackClock "0:00:54"]

1. d4 {[%clk 0:02:53]}  d6 {[%clk 0:02:59]} 2. c4 {[%clk 0:02:52]}  e5 {[%clk 0:02:58]} 3. dxe5 {[%clk 0:02:48]}  dxe5 {[%clk 0:02:59]} 4. Qxd8+ {[%clk 0:02:48]}  Kxd8 {[%clk 0:03:00]} 5. Nc3 {[%clk 0:02:48]}  Be6 {[%clk 0:02:59]} 6. e3 {[%clk 0:02:46]}  c6 {[%clk 0:02:58]} 7. Nf3 {[%clk 0:02:46]}  f6 {[%clk 0:02:58]} 8. b3 {[%clk 0:02:44]}  Kc7 {[%clk 0:02:58]} 9. Bb2 {[%clk 0:02:44]}  a5 {[%clk 0:02:58]} 10. Bd3 {[%clk 0:02:41]}  Na6 {[%clk 0:02:58]} 11. O-O {[%clk 0:02:39]}  Nc5 {[%clk 0:02:57]} 12. Bc2 {[%clk 0:02:39]}  Rd8 {[%clk 0:02:57]} 13. Rad1 {[%clk 0:02:37]}  Ne7 {[%clk 0:02:52]} 14. Rxd8 {[%clk 0:02:35]}  Kxd8 {[%clk 0:02:53]} 15. Rd1+ {[%clk 0:02:33]}  Kc7 {[%clk 0:02:53]} 16. Ne4 {[%clk 0:02:26]}  Nxe4 {[%clk 0:02:52]} 17. Bxe4 {[%clk 0:02:27]}  Bf5 {[%clk 0:02:49]} 18. Nd2 {[%clk 0:02:25]}  Bxe4 {[%clk 0:02:46]} 19. Nxe4 {[%clk 0:02:26]}  Nc8 {[%clk 0:02:46]} 20. Bc3 {[%clk 0:02:26]}  Bb4 {[%clk 0:02:09]} 21. Bxb4 {[%clk 0:02:25]}  axb4 {[%clk 0:02:10]} 22. Nc5 {[%clk 0:02:25]}  Re8 {[%clk 0:02:07]} 23. Rd7+ {[%clk 0:02:08]}  Kb6 {[%clk 0:02:07]} 24. Nd3 {[%clk 0:02:01]}  Re7 {[%clk 0:02:05]} 25. Rxe7 {[%clk 0:01:55]}  Nxe7 {[%clk 0:02:05]} 26. Nxb4 {[%clk 0:01:56]}  e4 {[%clk 0:02:05]} 27. Kf1 {[%clk 0:01:56]}  Kc5 {[%clk 0:02:02]} 28. Nc2 {[%clk 0:01:51]}  b5 {[%clk 0:02:02]} 29. cxb5 {[%clk 0:01:51]}  cxb5 {[%clk 0:02:02]} 30. a3 {[%clk 0:01:44]}  Nd5 {[%clk 0:01:59]} 31. Ke2 {[%clk 0:01:44]}  f5 {[%clk 0:01:55]} 32. Kd2 {[%clk 0:01:44]}  g6 {[%clk 0:01:46]} 33. Nd4 {[%clk 0:01:41]}  Nf6 {[%clk 0:01:43]} 34. h3 {[%clk 0:01:40]}  Nd7 {[%clk 0:01:41]} 35. Kc3 {[%clk 0:01:35]}  Ne5 {[%clk 0:01:41]} 36. Ne6+ {[%clk 0:01:32]}  Kd6 {[%clk 0:01:37]} 37. Nf8 {[%clk 0:01:32]}  h6 {[%clk 0:01:27]} 38. a4 {[%clk 0:01:27]}  bxa4 {[%clk 0:01:26]} 39. bxa4 {[%clk 0:01:27]}  Kc5 {[%clk 0:01:08]} 40. a5 {[%clk 0:01:26]}  g5 {[%clk 0:01:06]} 41. Ne6+ {[%clk 0:01:20]}  Kb5 {[%clk 0:00:59]} 42. Nd4+ {[%clk 0:01:20]}  Kxa5 {[%clk 0:01:00]} 43. Nxf5 {[%clk 0:01:20]}  Nd3 {[%clk 0:01:00]} 44. Nxh6 {[%clk 0:01:12]}  Nxf2 {[%clk 0:01:00]} 45. Nf7 {[%clk 0:01:12]}  Kb5 {[%clk 0:00:54]} 46. Kd4 {[%clk 0:01:10]} 1-0